fUSD/lending_fUSD_20250208
["ID","MTS","AMOUNT","RATE_DAILY","PERIOD"]
[352249646,1739016662479,-1082.66,0.00010671,2]
[352249647,1739016662489,-500.0,0.00010671,2]
[352249648,1739016662498,-2180.53,0.00010671,2]
[352249649,1739016662508,-504.92116031,0.00010671,2]
[352249650,1739016662519,-500.0,0.00010671,2]
[352249651,1739016662528,-670.71,0.00010671,2]
[352249652,1739016662538,-1715.72,0.00010671,2]
[352249653,1739016662547,-520.83,0.00010671,2]
[352249654,1739016662556,-3699.44,0.00010671,2]
[352249655,1739016662566,-500.0,0.00010671,2]
[352249656,1739016662575,-524.48,0.00010671,2]
[352249657,1739016662584,-2751.18,0.00010671,2]
[352249658,1739016662593,-500.0,0.00010671,2]
[352249659,1739016662603,-500.0,0.00010671,2]
[352249660,1739016662612,-1146.55,0.00010671,2]
[352249661,1739016662621,-592.79,0.00010671,2]
[352249662,1739016662630,-931.63,0.00010671,2]
[352249663,1739016662640,-1525.87,0.00010671,2]
[352249664,1739016662658,-2618.94,0.00010671,2]
[352249665,1739016662667,-669.42,0.00010671,2]
[352249666,1739016662677,-905.09,0.00010671,2]
[352249667,1739016662686,-500.0,0.00010671,2]
[352249668,1739016662695,-500.0,0.00010671,2]
[352249669,1739016662706,-1202.49,0.00010672,2]
[352249670,1739016662715,-651.3,0.00010672,2]
[352249671,1739016662726,-500.0,0.00010672,2]
[352249672,1739016662736,-556.5,0.00010672,2]
[352249673,1739016662746,-1262.24,0.00010672,2]
[352249674,1739016662755,-523.68,0.00010672,2]
[352249675,1739016662764,-645.85,0.00010672,2]
[352249676,1739016662774,-1255.57,0.00010672,2]
[352249677,1739016662783,-500.0,0.00010672,2]
[352249678,1739016662791,-1271.04,0.00010672,2]
[352249679,1739016662800,-2817.48,0.00010672,2]
[352249680,1739016662811,-1435.33,0.00010672,2]
[352249681,1739016662820,-678.63,0.00010672,2]
[352249682,1739016662829,-580.73,0.00010672,2]
[352249683,1739016662838,-619.8,0.00010672,2]
[352249684,1739016662847,-500.0,0.00010672,2]
[352249685,1739016662857,-1735.93,0.00010672,2]
[352249686,1739016662867,-617.19,0.00010672,2]
[352249687,1739016662876,-1402.8,0.00010672,2]
[352249688,1739016662885,-500.0,0.00010672,2]
[352249689,1739016662895,-1356.77,0.00010672,2]
[352249690,1739016662905,-552.02,0.00010672,2]
[352249691,1739016662914,-639.24,0.00010672,2]
[352249692,1739016662926,-1090.42,0.00010672,2]
[352249693,1739016662935,-500.0,0.00010672,2]
[352249694,1739016662944,-500.0,0.00010672,2]
[352249695,1739016662953,-520.86,0.00010672,2]
[352249696,1739016662962,-543.67,0.00010672,2]
[352249697,1739016662972,-683.58,0.00010672,2]
[352249698,1739016662981,-763.82,0.00010672,2]
[352249699,1739016662990,-340.83,0.00010704,2]
[352249700,1739016663000,-163.67677193,0.00010728,2]
[352249701,1739016663009,-500.0,0.00010807,2]
[352249702,1739016663019,-2684.42,0.00010807,2]
[352249703,1739016663029,-933.62,0.00010807,2]
[352249704,1739016663039,-1024.41,0.00010807,2]
[352249705,1739016663049,-2006.719722,0.00010807,2]
[352249706,1739016663058,-1000.88,0.00010807,2]
[352249707,1739016663067,-1598.6,0.00010807,2]
[352249708,1739016663077,-14404.81,0.00010807,2]
[352249709,1739016663086,-1873.95,0.00010807,2]
[352249710,1739016663096,-887.37,0.00010807,2]
[352249711,1739016663105,-1877.57,0.00010807,2]
[352249712,1739016663115,-155.827945,0.00010807,2]
[352249713,1739016663126,-500.0,0.00010807,2]
[352249714,1739016663135,-680.39,0.00010807,2]
[352249715,1739016663146,-2425.45,0.00010807,2]
[352249716,1739016663155,-1162.12,0.00010807,2]
[352249717,1739016663165,-500.0,0.00010807,2]
[352249718,1739016663175,-1515.42,0.00010807,2]
[352249719,1739016663185,-909.64,0.00010807,2]
[352249720,1739016663195,-2929.65,0.00010807,2]
[352249721,1739016663204,-1376.49,0.00010807,2]
[352249722,1739016663214,-1924.921431,0.00010807,2]
[352249723,1739016663223,-8797.64,0.00010807,2]
[352249724,1739016663233,-514.57,0.00010807,2]
[352249725,1739016663243,-500.0,0.00010807,2]
[352249726,1739016663252,-660.5,0.00010807,2]
[352249727,1739016663261,-1132.41,0.00010807,2]
[352249728,1739016663270,-1210.74,0.00010807,2]
[352249729,1739016663280,-2167.29,0.00010807,2]
[352249730,1739016663290,-997.08,0.00010807,2]
[352249731,1739016663300,-1956.24,0.00010807,2]
[352249732,1739016663309,-889.21,0.00010807,2]
[352249733,1739016663320,-1483.87,0.00010807,2]
[352249734,1739016663329,-1005.33,0.00010807,2]
[352249735,1739016663339,-1523.46,0.00010807,2]
[352249736,1739016663348,-500.0,0.00010807,2]
[352249737,1739016663358,-2972.62,0.00010807,2]
[352249738,1739016663368,-3014.46,0.00010807,2]
[352249739,1739016663377,-1879.88,0.00010807,2]
[352249740,1739016663387,-1805.48,0.00010807,2]
[352249741,1739016663396,-1675.03,0.00010807,2]
[352249742,1739016663406,-1525.04,0.00010807,2]
[352249743,1739016663415,-1481.76,0.00010807,2]
[352249744,1739016663424,-1550.41,0.00010807,2]
[352249745,1739016663434,-500.0,0.00010807,2]
[352249746,1739016663444,-1170.33,0.00010807,2]
[352249747,1739016663453,-1336.26,0.00010807,2]
[352249748,1739016663462,-6263.57,0.00010807,2]
[352249749,1739016663472,-722.46,0.00010807,2]
[352249750,1739016663482,-1279.94,0.00010807,2]
[352249751,1739016663491,-2548.9,0.00010807,2]
[352249752,1739016663501,-1763.51,0.00010807,2]
[352249753,1739016663510,-3187.35,0.00010807,2]
[352249754,1739016663520,-2428.97,0.00010807,2]
[352249755,1739016663529,-1433.03,0.00010807,2]
[352249756,1739016663539,-2509.09,0.00010807,2]
[352249757,1739016663548,-500.0,0.00010807,2]
[352249758,1739016663556,-1983.83,0.00010807,2]
[352249759,1739016663565,-1130.52,0.00010807,2]
[352249760,1739016663575,-938.92,0.00010807,2]
[352249761,1739016663585,-2847.66,0.00010807,2]
[352249762,1739016663594,-848.72,0.00010807,2]
[352249763,1739016663604,-981.5,0.00010807,2]
[352249764,1739016663613,-4198.29,0.00010807,2]
[352249765,1739016663623,-2236.4,0.00010807,2]
[352249766,1739016663632,-591.38,0.00010807,2]
[352249767,1739016663645,-500.0,0.00010807,2]
[352249768,1739016663655,-2177.48,0.00010807,2]
[352249769,1739016663664,-789.78,0.00010807,2]
[352249770,1739016663673,-2846.29,0.00010807,2]
[352249771,1739016663683,-2497.72,0.00010807,2]
[352249772,1739016663692,-3935.72,0.00010807,2]
[352249773,1739016663701,-1045.52,0.00010807,2]
[352249774,1739016663710,-2921.31,0.00010807,2]
[352249775,1739016663721,-1177.12,0.00010807,2]
[352249776,1739016663730,-685.44,0.00010807,2]
[352249777,1739016663739,-2601.32,0.00010807,2]
[352249778,1739016663748,-2586.35,0.00010807,2]
[352249779,1739016663758,-2525.4,0.00010807,2]
[352249780,1739016663768,-574.27,0.00010807,2]
[352249781,1739016663777,-1201.45,0.00010807,2]
[352249782,1739016663786,-500.0,0.00010807,2]
[352249783,1739016663796,-694.71,0.00010807,2]
[352249784,1739016663806,-758.46,0.00010807,2]
[352249785,1739016663816,-2455.19,0.00010807,2]
[352249786,1739016663827,-2656.07,0.00010807,2]
[352249787,1739016663836,-3064.19,0.00010807,2]
[352249788,1739016663846,-972.81,0.00010807,2]
[352249789,1739016663855,-500.0,0.00010807,2]
[352249790,1739016663864,-500.0,0.00010808,2]
[352249791,1739016663875,-500.0,0.00010808,2]
[352249792,1739016663884,-500.0,0.00010808,2]
[352249793,1739016663893,-208.31669619,0.00010808,2]
[352249794,1739016663902,-500.0,0.00010808,2]
[352249795,1739016663911,-500.0,0.00010808,2]
[352249796,1739016663920,-500.0,0.00010808,2]
[352249797,1739016663931,-500.0,0.00010808,2]
[352249798,1739016663941,-189.22678059,0.00010808,2]
[352249799,1739016663951,-500.0,0.00010808,2]
[352249800,1739016663960,-500.0,0.00010808,2]
[352249801,1739016663969,-591.73,0.00010808,2]
[352249802,1739016663979,-500.0,0.00010808,2]
[352249803,1739016663988,-690.29,0.00010808,2]
[352249804,1739016663997,-538.0,0.00010808,2]
[352249805,1739016664007,-500.0,0.00010808,2]
[352249806,1739016664016,-500.0,0.00010808,2]
[352249807,1739016664025,-500.0,0.00010808,2]
[352249808,1739016664034,-500.0,0.00010808,2]
[352249809,1739016664043,-774.67,0.00010808,2]
[352249810,1739016664053,-500.0,0.00010808,2]
[352249811,1739016664062,-500.0,0.00010808,2]
[352249812,1739016664071,-500.0,0.00010808,2]
[352249813,1739016664080,-500.0,0.00010808,2]
[352249814,1739016664089,-500.0,0.00010808,2]
[352249815,1739016664099,-500.0,0.00010808,2]
[352249816,1739016664107,-500.0,0.00010808,2]
[352249817,1739016664117,-500.0,0.00010808,2]
[352249818,1739016664126,-500.0,0.00010808,2]
[352249819,1739016664136,-1124.54,0.00010808,2]
[352249820,1739016664145,-500.0,0.00010808,2]
[352249821,1739016664155,-500.0,0.00010808,2]
[352249822,1739016664164,-500.0,0.00010808,2]
[352249823,1739016664174,-578.02,0.00010808,2]
[352249824,1739016664183,-500.0,0.00010808,2]
[352249825,1739016664192,-500.0,0.00010808,2]
[352249826,1739016664202,-500.0,0.00010808,2]
[352249827,1739016664211,-500.0,0.00010808,2]
[352249828,1739016664221,-731.4,0.00010808,2]
[352249829,1739016664230,-1169.39,0.00010808,2]
[352249830,1739016664240,-500.0,0.00010808,2]
[352249831,1739016664250,-500.0,0.00010808,2]
[352249832,1739016664259,-582.22,0.00010808,2]
[352249833,1739016664269,-500.0,0.00010808,2]
[352249834,1739016664279,-739.49,0.00010808,2]
[352249835,1739016664288,-500.0,0.00010808,2]
[352249836,1739016664297,-500.0,0.00010808,2]
[352249837,1739016664307,-904.49,0.00010808,2]
[352249838,1739016664316,-500.0,0.00010808,2]
[352249839,1739016664327,-500.0,0.00010808,2]
[352249840,1739016664337,-1674.01,0.00010808,2]
[352249841,1739016664346,-319.63951945,0.00010808,2]
[352249842,1739016664355,-825.85,0.00010808,2]
[352249843,1739016664365,-500.0,0.00010808,2]
[352249844,1739016664374,-500.0,0.00010808,2]
[352249845,1739016664384,-571.8800579,0.00010808,2]
[352249846,1739016664394,-357.77800009,0.00010808,2]
[352249847,1739016664403,-1609.57,0.00010808,2]
[352249848,1739016664414,-531.32,0.00010808,2]
[352249849,1739016664424,-500.0,0.00010808,2]
[352249850,1739016664435,-500.0,0.00010808,2]
[352249851,1739016664444,-755.09,0.00010808,2]
[352249852,1739016664454,-500.0,0.00010808,2]
[352249853,1739016664463,-500.0,0.00010808,2]
[352249854,1739016664472,-755.03,0.00010808,2]
[352249855,1739016664482,-500.0,0.00010808,2]
[352249856,1739016664492,-573.72,0.00010808,2]
[352249857,1739016664501,-1197.56,0.00010808,2]
[352249858,1739016664511,-500.0,0.00010808,2]
[352249859,1739016664520,-500.0,0.00010808,2]
[352249860,1739016664529,-500.0,0.00010808,2]
[352249861,1739016664539,-500.0,0.00010808,2]
[352249862,1739016664549,-771.54,0.00010808,2]
[352249863,1739016664559,-558.54,0.00010808,2]
[352249864,1739016664571,-500.0,0.00010808,2]
[352249865,1739016664580,-500.0,0.00010808,2]
[352249866,1739016664589,-500.0,0.00010808,2]
[352249867,1739016664598,-525.06,0.00010808,2]
[352249868,1739016664607,-500.0,0.00010808,2]
[352249869,1739016664616,-520.49,0.00010808,2]
[352249870,1739016664624,-500.0,0.00010808,2]
[352249871,1739016664633,-509.49,0.00010808,2]
[352249872,1739016664646,-500.0,0.00010808,2]
[352249873,1739016664657,-500.0,0.00010808,2]
[352249874,1739016664666,-1295.12,0.00010808,2]
[352249875,1739016664675,-588.90990675,0.00010808,2]
[352249876,1739016664685,-500.0,0.00010808,2]
[352249877,1739016664697,-558.23,0.00010808,2]
[352249878,1739016664707,-603.54,0.00010808,2]
[352249879,1739016664717,-500.0,0.00010808,2]
[352249880,1739016664730,-500.0,0.00010808,2]
[352249881,1739016664739,-500.0,0.00010808,2]
[352249882,1739016664748,-500.0,0.00010808,2]
[352249883,1739016664757,-500.0,0.00010808,2]
[352249884,1739016664766,-500.0,0.00010808,2]
[352249885,1739016664775,-500.0,0.00010808,2]
[352249886,1739016664786,-500.0,0.00010808,2]
[352249887,1739016664795,-500.0,0.00010808,2]
[352249888,1739016664804,-530.55,0.00010808,2]
[352249889,1739016664816,-292.37955906,0.00010808,2]
[352249890,1739016664826,-1143.44,0.00010808,2]
[352249891,1739016664836,-500.0,0.00010808,2]
[352249892,1739016664846,-500.0,0.00010808,2]
[352249893,1739016664856,-500.0,0.00010808,2]
[352249894,1739016664866,-370.74565006,0.00010808,2]
[352249895,1739016664875,-1033.59,0.00010808,2]
[352249896,1739016664886,-500.0,0.00010808,2]
[352249897,1739016664895,-500.0,0.00010808,2]
[352249898,1739016664905,-1257.01,0.00010808,2]
[352249899,1739016664915,-876.98,0.00010808,2]
[352249900,1739016664927,-500.0,0.00010808,2]
[352249901,1739016664936,-501.05,0.00010808,2]
[352249902,1739016664945,-500.0,0.00010808,2]
[352249903,1739016664954,-500.0,0.00010808,2]
[352249904,1739016664963,-530.26,0.00010808,2]
[352249905,1739016664972,-500.0,0.00010808,2]
[352249906,1739016664981,-500.0,0.00010808,2]
[352249907,1739016664990,-173.51423332,0.00010808,2]
[352249908,1739016664999,-500.0,0.00010808,2]
[352249909,1739016665008,-1651.88,0.00010808,2]
[352249910,1739016665018,-500.0,0.00010808,2]
[352249911,1739016665028,-1148.94,0.00010808,2]
[352249912,1739016665038,-500.0,0.00010808,2]
[352249913,1739016665047,-500.0,0.00010808,2]
[352249914,1739016665057,-575.47,0.00010808,2]
[352249915,1739016665066,-500.0,0.00010808,2]
[352249916,1739016665074,-500.0,0.00010808,2]
[352249917,1739016665083,-1025.22,0.00010808,2]
[352249918,1739016665092,-915.76,0.00010808,2]
[352249919,1739016665101,-500.0,0.00010808,2]
[352249920,1739016665110,-964.7,0.00010808,2]
[352249921,1739016665119,-500.0,0.00010808,2]
[352249922,1739016665128,-698.32,0.00010808,2]
[352249923,1739016665137,-500.0,0.00010808,2]
[352249924,1739016665146,-1390.15,0.00010808,2]
[352249925,1739016665155,-500.0,0.00010808,2]
[352249926,1739016665164,-1649.62,0.00010808,2]
[352249927,1739016665173,-500.0,0.00010808,2]
[352249928,1739016665182,-500.0,0.00010808,2]
[352249929,1739016665191,-500.0,0.00010808,2]
[352249930,1739016665201,-500.0,0.00010808,2]
[352249931,1739016665210,-500.0,0.00010808,2]
[352249932,1739016665219,-526.92,0.00010808,2]
[352249933,1739016665228,-592.25,0.00010808,2]
[352249934,1739016665237,-1935.59,0.00010808,2]
[352249935,1739016665247,-500.0,0.00010808,2]
[352249936,1739016665256,-910.81,0.00010808,2]
[352249937,1739016665268,-650.96,0.00010808,2]
[352249938,1739016665278,-500.0,0.00010808,2]
[352249939,1739016665287,-534.04,0.00010808,2]
[352249940,1739016665296,-500.0,0.00010808,2]
[352249941,1739016665306,-500.0,0.00010808,2]
[352249942,1739016665315,-1191.28,0.00010808,2]
[352249943,1739016665324,-500.0,0.00010808,2]
[352249944,1739016665334,-544.7,0.00010808,2]
[352249945,1739016665343,-500.0,0.00010808,2]
[352249946,1739016665353,-500.0,0.00010808,2]
[352249947,1739016665362,-500.0,0.00010808,2]
[352249948,1739016665371,-500.0,0.00010808,2]
[352249949,1739016665381,-724.27,0.00010808,2]
[352249950,1739016665390,-663.16,0.00010808,2]
[352249951,1739016665399,-500.0,0.00010808,2]
[352249952,1739016665408,-594.76,0.00010808,2]
[352249953,1739016665417,-500.0,0.00010808,2]
[352249954,1739016665426,-1403.23,0.00010808,2]
[352249955,1739016665435,-500.0,0.00010808,2]
[352249956,1739016665445,-985.78,0.00010808,2]
[352249957,1739016665454,-500.0,0.00010808,2]
[352249958,1739016665463,-938.03,0.00010808,2]
[352249959,1739016665473,-603.48938919,0.00010808,2]
[352249960,1739016665483,-692.14,0.00010808,2]
[352249961,1739016665492,-500.0,0.00010808,2]
[352249962,1739016665501,-500.0,0.00010808,2]
[352249963,1739016665510,-500.0,0.00010808,2]
[352249964,1739016665521,-500.0,0.00010808,2]
[352249965,1739016665530,-609.95,0.00010808,2]
[352249966,1739016665539,-1057.83,0.00010808,2]
[352249967,1739016665548,-500.0,0.00010808,2]
[352249968,1739016665558,-500.0,0.00010808,2]
[352249969,1739016665567,-500.0,0.00010808,2]
[352249970,1739016665576,-500.0,0.00010808,2]
[352249971,1739016665585,-512.17,0.00010808,2]
[352249972,1739016665595,-500.0,0.00010808,2]
[352249973,1739016665604,-2647.65,0.00010808,2]
[352249974,1739016665613,-500.0,0.00010808,2]
[352249975,1739016665622,-2248.66,0.00010808,2]
[352249976,1739016665631,-510.32,0.00010808,2]
[352249977,1739016665644,-732.34,0.00010808,2]
[352249978,1739016665653,-596.98187065,0.00010808,2]
[352249979,1739016665662,-500.0,0.00010808,2]
[352249980,1739016665671,-551.51,0.00010808,2]
[352249981,1739016665682,-1105.66,0.00010808,2]
[352249982,1739016665691,-500.0,0.00010808,2]
[352249983,1739016665700,-500.0,0.00010808,2]
[352249984,1739016665709,-751.01,0.00010808,2]
[352249985,1739016665720,-500.0,0.00010808,2]
[352249986,1739016665731,-544.08,0.00010808,2]
[352249987,1739016665740,-1066.43,0.00010808,2]
[352249988,1739016665750,-1519.45,0.00010808,2]
[352249989,1739016665759,-1474.09,0.00010808,2]
[352249990,1739016665770,-500.0,0.00010808,2]
[352249991,1739016665779,-552.34,0.00010808,2]
[352249992,1739016665789,-1624.49,0.00010808,2]
[352249993,1739016665798,-852.74,0.00010808,2]
[352249994,1739016665807,-1118.02,0.00010808,2]
[352249995,1739016665817,-561.31,0.00010808,2]
[352249996,1739016665825,-500.0,0.00010808,2]
[352249997,1739016665834,-500.0,0.00010808,2]
[352249998,1739016665844,-1284.92,0.00010808,2]
[352249999,1739016665854,-500.0,0.00010808,2]
[352250000,1739016665863,-619.81,0.00010808,2]
[352250001,1739016665872,-500.0,0.00010808,2]
[352250002,1739016665882,-500.0,0.00010808,2]
[352250003,1739016665891,-928.27,0.00010808,2]
[352250004,1739016665901,-1439.99,0.00010808,2]
[352250005,1739016665911,-500.0,0.00010808,2]
[352250006,1739016665921,-500.0,0.00010808,2]
[352250007,1739016665930,-500.0,0.00010808,2]
[352250008,1739016665939,-745.06,0.00010808,2]
[352250009,1739016665948,-1217.49,0.00010808,2]
[352250010,1739016665957,-765.27,0.00010808,2]
[352250011,1739016665967,-590.8,0.00010808,2]
[352250012,1739016665977,-500.0,0.00010808,2]
[352250013,1739016665987,-508.28,0.00010808,2]
[352250014,1739016665997,-644.75,0.00010808,2]
[352250015,1739016666006,-230.32287198,0.00010808,2]
[352250016,1739016666019,-1307.72,0.00010808,2]
[352250017,1739016666028,-919.85,0.00010808,2]
[352250018,1739016666038,-661.48,0.00010808,2]
[352250019,1739016666048,-812.62,0.00010808,2]
[352250020,1739016666058,-576.6,0.00010808,2]
[352250021,1739016666068,-500.0,0.00010808,2]
[352250022,1739016666078,-500.0,0.00010808,2]
[352250023,1739016666088,-3629.14,0.00010808,2]
[352250024,1739016666099,-848.22,0.00010808,2]
[352250025,1739016666110,-794.68,0.00010808,2]
[352250026,1739016666121,-890.34,0.00010808,2]
[352250027,1739016666132,-1094.34,0.00010808,2]
[352250028,1739016666141,-2156.61,0.00010808,2]
[352250029,1739016666151,-500.0,0.00010808,2]
[352250030,1739016666161,-592.9,0.00010808,2]
[352250031,1739016666172,-1316.74,0.00010808,2]
[352250032,1739016666182,-500.0,0.00010808,2]
[352250033,1739016666192,-2965.59,0.00010808,2]
[352250034,1739016666203,-500.0,0.00010808,2]
[352250035,1739016666213,-500.0,0.00010808,2]
[352250036,1739016666224,-2729.76,0.00010808,2]
[352250037,1739016666234,-1273.81,0.00010808,2]
[352250038,1739016666245,-500.0,0.00010808,2]
[352250039,1739016666256,-500.0,0.00010808,2]
[352250040,1739016666269,-2243.36,0.00010808,2]
[352250041,1739016666279,-500.0,0.00010808,2]
[352250042,1739016666290,-1994.8,0.00010808,2]
[352250043,1739016666300,-500.0,0.00010808,2]
[352250044,1739016666311,-3608.88,0.00010808,2]
[352250045,1739016666322,-500.0,0.00010808,2]
[352250046,1739016666332,-500.0,0.00010808,2]
[352250047,1739016666342,-530.22,0.00010808,2]
[352250048,1739016666352,-500.0,0.00010808,2]
[352250049,1739016666362,-500.0,0.00010808,2]
[352250050,1739016666374,-902.09,0.00010808,2]
[352250051,1739016666384,-742.68,0.00010808,2]
[352250052,1739016666394,-524.17,0.00010808,2]
[352250053,1739016666404,-500.0,0.00010808,2]
[352250054,1739016666415,-557.0,0.00010808,2]
[352250055,1739016666425,-500.0,0.00010808,2]
[352250056,1739016666435,-1082.66,0.00010808,2]
[352250057,1739016666445,-500.0,0.00010808,2]
[352250058,1739016666455,-2180.53,0.00010808,2]
[352250059,1739016666465,-500.0,0.00010808,2]
[352250060,1739016666475,-670.71,0.00010808,2]
[352250061,1739016666486,-1715.72,0.00010808,2]
[352250062,1739016666496,-520.83,0.00010808,2]
[352250063,1739016666507,-3699.44,0.00010808,2]
[352250064,1739016666518,-500.0,0.00010808,2]
[352250065,1739016666528,-524.48,0.00010808,2]
[352250066,1739016666539,-2751.18,0.00010808,2]
[352250067,1739016666550,-500.0,0.00010808,2]
[352250068,1739016666560,-500.0,0.00010808,2]
[352250069,1739016666569,-1146.55,0.00010808,2]
[352250070,1739016666579,-592.79,0.00010808,2]
[352250071,1739016666589,-931.63,0.00010808,2]
[352250072,1739016666600,-1525.87,0.00010808,2]
[352250073,1739016666609,-2618.94,0.00010808,2]
[352250074,1739016666619,-669.42,0.00010808,2]
[352250075,1739016666629,-905.09,0.00010808,2]
[352250076,1739016666638,-500.0,0.00010808,2]
[352250077,1739016666651,-500.0,0.00010808,2]
[352250078,1739016666660,-1202.49,0.00010809,2]
[352250079,1739016666670,-651.3,0.00010809,2]
[352250080,1739016666679,-500.0,0.00010809,2]
[352250081,1739016666690,-556.5,0.00010809,2]
[352250082,1739016666700,-1262.24,0.00010809,2]
[352250083,1739016666710,-523.68,0.00010809,2]
[352250084,1739016666720,-645.85,0.00010809,2]
[352250085,1739016666731,-1255.57,0.00010809,2]
[352250086,1739016666741,-500.0,0.00010809,2]
[352250087,1739016666751,-1271.04,0.00010809,2]
[352250088,1739016666762,-2817.48,0.00010809,2]
[352250089,1739016666772,-1435.33,0.00010809,2]
[352250090,1739016666782,-678.63,0.00010809,2]
[352250091,1739016666791,-580.73,0.00010809,2]
[352250092,1739016666801,-619.8,0.00010809,2]
[352250093,1739016666811,-500.0,0.00010809,2]
[352250094,1739016666820,-1735.93,0.00010809,2]
[352250095,1739016666830,-617.19,0.00010809,2]
[352250096,1739016666840,-1402.8,0.00010809,2]
[352250097,1739016666850,-500.0,0.00010809,2]
[352250098,1739016666860,-1356.77,0.00010809,2]
[352250099,1739016666870,-552.02,0.00010809,2]
[352250100,1739016666880,-639.24,0.00010809,2]
[352250101,1739016666890,-1090.42,0.00010809,2]
[352250102,1739016666900,-500.0,0.00010809,2]
[352250103,1739016666910,-500.0,0.00010809,2]
[352250104,1739016666919,-520.86,0.00010809,2]
[352250105,1739016666929,-543.67,0.00010809,2]
[352250106,1739016666939,-683.58,0.00010809,2]
[352250107,1739016666951,-763.82,0.00010809,2]
[352250108,1739016666960,-163.67677193,0.00010814,2]
[352250109,1739016666970,-1000.0,0.00010821,2]
[352250110,1739016666979,-415.49194747,0.00010827,2]
[352250111,1739016666989,-163.67677193,0.000109,2]
[352250112,1739016666999,-162.09347594,0.000109,2]
[352250113,1739016667009,-162.09347594,0.000109,2]
[352250114,1739016667021,-162.09347594,0.000109,2]
[352250115,1739016667030,-500.0,0.00010944,2]
[352250116,1739016667040,-500.0,0.00010944,2]
[352250117,1739016667050,-2684.42,0.00010944,2]
[352250118,1739016667059,-933.62,0.00010944,2]
[352250119,1739016667068,-1024.41,0.00010944,2]
[352250120,1739016667078,-2006.719722,0.00010944,2]
[352250121,1739016667088,-1000.88,0.00010944,2]
[352250122,1739016667098,-1598.6,0.00010944,2]
[352250123,1739016667108,-14404.81,0.00010944,2]
[352250124,1739016667119,-1873.95,0.00010944,2]
[352250125,1739016667129,-152.584381,0.00010944,2]
[352250126,1739016667138,-887.37,0.00010944,2]
[352250127,1739016667148,-1877.57,0.00010944,2]
[352250128,1739016667158,-500.0,0.00010944,2]
[352250129,1739016667169,-680.39,0.00010944,2]
[352250130,1739016667179,-2425.45,0.00010944,2]
[352250131,1739016667189,-1162.12,0.00010944,2]
[352250132,1739016667199,-500.0,0.00010944,2]
[352250133,1739016667209,-1515.42,0.00010944,2]
[352250134,1739016667218,-909.64,0.00010944,2]
[352250135,1739016667228,-2929.65,0.00010944,2]
[352250136,1739016667238,-1376.49,0.00010944,2]
[352250137,1739016667250,-1924.921431,0.00010944,2]
[352250138,1739016667260,-8797.64,0.00010944,2]
[352250139,1739016667271,-514.57,0.00010944,2]
[352250140,1739016667280,-500.0,0.00010944,2]
[352250141,1739016667290,-660.5,0.00010944,2]
[352250142,1739016667300,-1132.41,0.00010944,2]
[352250143,1739016667310,-1210.74,0.00010944,2]
[352250144,1739016667321,-2167.29,0.00010944,2]
[352250145,1739016667331,-997.08,0.00010944,2]